bitfinex-derivatives/quotes_ETHF0:USTF0_20250123
["timestamp","ask_amount","ask_price","bid_price","bid_amount"]
[1737598969805,0.62227,3216.1,3216.0,0.00467012]
[1737598970503,3.2078,3216.2,3215.5,0.62237]
[1737598970709,3.8764,3216.2,3215.0,43.1]
[1737598970907,0.62234,3215.8,3215.5,0.62237]
[1737598971109,0.62227,3216.1,3215.5,0.62238]
[1737598971307,0.62239,3215.5,3215.2,0.62243]
[1737598971602,0.62246,3215.1,3214.8,0.62251]
[1737598971807,3.2078,3215.4,3215.0,0.00467012]
[1737598972005,0.62238,3215.6,3215.0,0.00467012]
[1737598972208,3.83014,3215.8,3215.5,0.62237]
[1737598972511,0.00467012,3215.6,3215.5,0.62237]
[1737598972805,0.00467012,3215.6,3215.1,40.8]
[1737598973106,0.00467012,3215.6,3215.4,0.62239]
[1737598973308,0.62704012,3215.6,3215.4,0.62239]
[1737598973700,0.7255,3215.5,3215.4,0.62239]
[1737598975400,0.00467012,3215.6,3215.5,0.62239]
[1737598975608,1.2e-07,3215.6,3215.5,1.42208876]
[1737598975802,1.2e-07,3215.6,3215.5,6.42208876]
[1737598976015,1.2e-07,3215.6,3215.5,47.22208876]
[1737598976205,1.2e-07,3215.6,3215.5,47.22204461]
[1737598976404,1.2e-07,3215.6,3215.5,48.41561406]
[1737598977106,1.2e-07,3215.6,3215.5,43.41561406]
[1737598977308,1.2e-07,3215.6,3215.5,42.96287219]
[1737598977907,1.2e-07,3215.6,3215.5,42.22845218]
[1737598978207,1.2e-07,3215.6,3215.5,41.88145517]
[1737598978411,1.2e-07,3215.6,3215.5,42.22845104]
[1737598978709,1.2e-07,3215.6,3215.5,41.60606104]
[1737598978913,1.2e-07,3215.6,3215.4,0.62239]
[1737598978914,0.62237012,3215.6,3215.4,0.62239]
[1737598979102,0.62238012,3215.6,3215.0,0.00467012]
[1737598979309,1.2e-07,3215.6,3215.5,0.62239]
[1737598979915,1.2e-07,3215.6,3215.1,40.8]
[1737598979916,0.62237012,3215.6,3215.4,0.6224]
[1737598980102,0.62237012,3215.6,3215.1,40.8]
[1737598980103,1.2e-07,3215.6,3215.1,40.8]
[1737598980509,1.2e-07,3215.6,3215.5,0.62239]
[1737598982511,1.2e-07,3215.6,3215.1,40.8]
[1737598982713,0.62243,3215.3,3215.1,41.42245]
[1737598982914,0.62244,3215.2,3215.1,40.8]
[1737598983317,3.20780012,3215.6,3215.1,40.8]
[1737598983614,0.62244,3215.2,3215.1,40.8]
[1737598983817,3.20780012,3215.6,3215.0,0.00467012]
[1737598984023,0.62246,3215.1,3215.0,0.00467012]
[1737598984216,0.62258,3214.5,3214.4,0.62259]
[1737598984514,0.62258,3214.5,3214.4,40.8]
[1737598985012,0.62257,3214.6,3214.4,40.8]
[1737598985317,3.2078,3214.7,3214.6,0.62256]
[1737598986214,3.2078,3214.7,3214.5,0.62257]
[1737598986412,3.2078,3214.7,3214.6,0.62256]
[1737598986617,3.2078,3214.7,3214.4,40.8]
[1737598987313,3.2078,3214.7,3214.6,0.62256]
[1737598988113,3.2078,3214.7,3214.4,40.8]
[1737598988313,0.62258,3214.5,3214.4,40.8]
[1737598989117,0.62262,3214.3,3214.2,0.00467012]
[1737598989318,3.83042,3214.3,3214.2,0.00467012]
[1737598989522,3.83042,3214.3,3214.2,40.80467012]
[1737598989721,3.83042,3214.3,3214.2,0.00467012]
[1737598990020,0.62279,3213.5,3213.2,3.83062]
[1737598990216,0.62279,3213.5,3213.3,40.8]
[1737598991035,0.62279,3213.4,3213.3,40.8]
[1737598991324,1.28917,3213.6,3213.3,41.4228]
[1737598991620,0.6664,3213.6,3213.4,0.62279]
[1737598992423,0.6664,3213.6,3213.4,0.62137579]
[1737598992724,0.68897012,3213.7,3213.3,40.8]
[1737598992912,0.00467012,3213.7,3213.6,0.62275]
[1737598993117,0.6664,3214.7,3213.6,3.2078]
[1737598993319,0.6664,3214.7,3214.6,0.62256]
[1737598993619,0.6733,3214.8,3214.7,0.62254]
[1737598994315,0.6733,3214.8,3214.7,41.42254]
[1737598995424,0.6733,3214.8,3214.7,40.8]
[1737598995726,1.29582,3214.8,3214.7,40.8]
[1737598995917,0.62269,3214.0,3213.8,3.2078]
[1737598996118,0.62274,3213.7,3213.3,0.6807]
[1737598996320,0.62274,3213.7,3213.4,0.62279]
[1737598996518,0.62274,3213.7,3213.5,41.42276]
[1737598996721,3.2078,3214.1,3213.5,41.42276]
[1737598996722,0.62275,3213.6,3213.5,40.8]
[1737598996916,0.62275,3213.7,3213.5,41.42277]
[1737598997313,0.6778,3214.0,3213.8,0.6227]
[1737598997314,1.30048,3214.0,3213.8,0.6227]
[1737598997621,1.30048,3214.0,3213.8,0.62271]
[1737598997821,1.30048,3214.0,3213.9,0.6227]
[1737598997822,0.6778,3214.0,3213.9,0.6227]
[1737598998323,3.2078,3214.1,3214.0,0.62268]
[1737598998617,0.62265,3214.2,3214.0,0.62268]
[1737598998816,0.62265,3214.2,3214.0,0.62266]
[1737598999016,0.62265,3214.2,3214.1,0.62266]
[1737598999216,0.6682,3214.5,3213.6,3.2078]
[1737598999423,0.62261,3214.4,3214.2,0.62262]
[1737598999718,0.6682,3214.5,3213.7,1.55684]
[1737599000122,0.62261,3214.4,3214.2,0.62263]
[1737599001925,0.6682,3214.5,3213.6,3.8643]
[1737599002224,3.2078,3214.6,3214.5,0.62258]
[1737599002729,3.2078,3214.6,3214.5,41.42258]
[1737599003132,3.83036,3214.6,3214.5,41.42258]
[1737599003320,3.83036,3214.6,3214.5,40.8]
[1737599004126,3.2078,3214.6,3214.5,40.8]
[1737599004628,3.2078,3214.6,3213.7,0.6744]
[1737599004824,3.2078,3214.6,3213.7,2.23124]
[1737599005025,3.2078,3214.6,3213.7,0.6744]
[1737599005222,3.2078,3214.6,3214.5,0.62258]
[1737599006228,0.62249,3215.0,3214.3,1.55655]
[1737599006429,0.62714012,3215.1,3214.9,0.6225]
[1737599006629,0.62248,3215.0,3214.9,0.6225]
[1737599006824,0.62251,3214.9,3214.3,1.55655]
[1737599007127,0.00467012,3215.1,3214.1,3.2078]
[1737599007330,0.62249,3215.0,3214.8,0.6225]
[1737599007530,0.62249,3215.0,3214.8,0.62251]
[1737599007834,0.00467012,3215.1,3214.2,1.1952407]
[1737599008027,0.00467012,3215.1,3215.0,0.62248]
[1737599008629,0.00467012,3215.1,3215.0,41.42248]
[1737599009130,3.83008,3216.1,3215.0,49.82173501]
[1737599009334,3.83008,3216.1,3215.3,1.55607]
[1737599009335,3.2078,3216.1,3215.3,1.55607]
[1737599009531,3.83008,3216.1,3215.9,0.62231]
[1737599009927,3.83008,3216.1,3215.8,0.62231]
[1737599010227,3.83008,3216.1,3215.8,0.62232]
[1737599010435,3.83008,3216.1,3215.9,0.62231]
[1737599010635,3.2078,3216.1,3215.5,0.7627]
[1737599010830,3.2078,3216.1,3215.2,3.2078]
[1737599011037,3.2078,3215.6,3214.7,0.76737012]
[1737599011234,0.62242,3215.4,3215.2,0.62244]
[1737599011440,3.2078,3215.6,3214.7,0.76737012]
[1737599011739,0.62239,3215.5,3215.3,0.62241]
[1737599011936,0.62239,3215.5,3215.2,0.62243]
[1737599012236,0.62242,3215.4,3215.2,0.62243]
[1737599012535,3.2078,3215.6,3214.7,0.76737012]
[1737599012737,0.6224,3215.5,3214.8,2.37005976]
[1737599012940,0.6224,3215.5,3215.3,0.62242]
[1737599013332,0.62237,3215.6,3215.4,0.62239]
[1737599013638,0.7069,3216.0,3215.6,0.62235]
[1737599013639,0.62234,3215.8,3215.6,0.62235]
[1737599013933,3.2078,3216.1,3215.7,40.8]
[1737599014132,0.62229,3216.0,3215.8,0.62233]
[1737599014437,3.2078,3216.1,3216.0,0.62229]
[1737599015535,0.6621,3216.2,3215.7,40.8]
[1737599015740,1.28435,3216.2,3215.8,0.62233]
[1737599015932,1.28435,3216.2,3216.0,0.62228]
[1737599016440,0.00467012,3216.3,3216.2,0.62225]
[1737599017540,3.2078,3217.2,3217.1,0.62208]
[1737599017842,0.7022,3218.0,3217.8,0.62194]
[1737599018042,3.2078,3217.9,3217.1,3.2078]
[1737599018236,3.82981,3217.5,3217.2,41.42205]
[1737599018445,0.62197,3217.7,3217.4,0.62202]
[1737599018634,0.00464544,3217.7,3217.2,40.8]
[1737599018835,0.00464544,3217.7,3217.5,0.62199]
[1737599019036,0.00464544,3217.7,3217.6,0.62198]
[1737599020929,0.00464544,3217.7,3217.6,40.8]
[1737599021130,0.00464544,3217.7,3217.3,0.6999]
[1737599021330,0.00464544,3217.7,3217.4,0.622]
[1737599021535,0.00464544,3217.7,3217.3,0.6999]
[1737599021536,0.62661544,3217.7,3217.3,0.6999]
[1737599021835,0.62199,3217.6,3217.2,0.62204]
[1737599022043,1.39099,3217.6,3217.0,0.00466273]
[1737599022241,0.769,3217.6,3217.4,0.62201]
[1737599022438,0.769,3217.6,3217.0,0.00466273]
[1737599022638,0.00464544,3217.7,3217.6,0.62198]
[1737599023338,0.00464544,3217.7,3217.6,41.42198]
[1737599023740,0.00464544,3217.7,3217.0,1.52116273]
[1737599023936,3.21244544,3217.7,3217.0,0.00466273]
[1737599024244,3.2078,3217.1,3217.0,0.00466273]
[1737599024440,3.82988,3217.1,3217.0,0.00466273]
[1737599025636,3.82988,3217.1,3215.8,0.25131891]
[1737599025637,3.2078,3217.1,3215.8,0.25131891]
[1737599025949,0.62223,3216.4,3215.7,3.2078]
[1737599026135,3.2078,3216.5,3216.3,0.62222]
[1737599026339,3.2078,3216.5,3216.4,0.62221]
[1737599026536,3.2078,3216.9,3216.8,0.62213]
[1737599026748,3.2078,3216.9,3216.1,3.2078]
[1737599026943,3.2078,3216.9,3216.5,0.00466273]
[1737599027348,3.2078,3217.5,3216.5,0.00466273]
[1737599027736,3.2078,3217.5,3216.8,0.62212]
[1737599027948,0.62208,3217.1,3216.8,0.62212]
[1737599028849,0.62203,3217.4,3217.1,0.62208]
[1737599029240,3.2078,3217.5,3216.5,3.21246273]
[1737599029548,3.2078,3217.5,3217.4,0.62202]
[1737599029745,0.7457,3217.6,3216.9,3.2078]
[1737599030247,1.36769,3217.6,3217.3,0.62202]
[1737599030448,1.36769,3217.6,3217.4,0.62201]
[1737599030449,0.7457,3217.6,3217.4,0.62201]
[1737599030953,0.7457,3217.6,3217.5,40.8]
[1737599031344,1.36768,3217.6,3217.5,40.8]
[1737599033453,1.36768,3217.6,3217.3,0.62203]
[1737599033942,1.36768,3217.6,3217.4,0.62201]
[1737599033943,0.7457,3217.6,3217.4,0.62201]
[1737599034147,0.7457,3217.6,3217.5,0.622]
[1737599034446,1.36768,3217.6,3217.3,0.62202]
[1737599034647,0.7457,3217.6,3216.8,40.8]
[1737599034846,0.00464544,3217.7,3217.6,0.62198]
[1737599035057,0.00464544,3217.7,3217.5,0.62198]
[1737599035350,0.00464544,3217.7,3217.3,3.2078]
[1737599035351,0.00464544,3217.7,3217.6,0.62198]
[1737599036545,0.00464544,3217.7,3217.6,41.42198]
[1737599037950,0.62660544,3217.7,3217.4,0.622]
[1737599038149,0.622,3217.5,3217.3,0.62203]
[1737599039057,0.62202,3217.4,3217.2,0.62205]
[1737599039350,0.00464544,3217.7,3217.6,0.62198]
[1737599039752,0.00464544,3217.7,3217.6,1.43378696]
[1737599039953,0.00464544,3217.7,3217.6,1.89256468]
[1737599040256,0.00464544,3217.7,3217.6,1.89254537]
[1737599040755,0.00464544,3217.7,3217.6,2.62674593]
[1737599040951,0.00464544,3217.7,3217.6,43.42674593]
[1737599041155,5.29222,3219.0,3218.7,0.62175]
[1737599041352,4.6705,3219.0,3218.0,3.2078]
[1737599041551,5.29222,3219.0,3218.8,0.62175]
[1737599041850,0.62176,3218.8,3218.5,0.62179]
[1737599042057,4.6705,3219.0,3218.1,0.7234]
[1737599042256,1.4627,3219.0,3218.9,0.62173]
[1737599042857,0.7099,3219.6,3218.9,0.62173]
[1737599042858,3.2078,3221.9,3220.6,0.6214]
[1737599043162,3.2078,3221.9,3220.9,3.2078]
[1737599043455,3.2078,3221.9,3221.5,0.62122]
[1737599044057,3.2078,3221.9,3221.4,0.00466273]
[1737599044259,0.62111,3222.2,3221.4,0.00466273]
[1737599044458,3.2078,3222.6,3221.4,0.00466273]
[1737599044765,0.62119,3221.7,3221.4,0.00466273]
[1737599045061,0.62123,3221.5,3221.4,0.00466273]
[1737599047361,1.55312,3221.4,3220.1,3.2078]
[1737599047561,0.62142,3220.5,3220.1,0.62148]
[1737599047761,0.62145,3220.4,3220.0,3.2078]
[1737599047959,0.62145,3220.4,3220.0,3.82931]
[1737599048157,0.62138,3220.7,3220.2,0.62147]
[1737599048460,0.00466273,3220.5,3220.2,0.62147]
[1737599048654,0.62609273,3220.5,3220.1,0.62149]
[1737599048853,0.62609273,3220.5,3220.0,3.2078]
[1737599049059,0.00466273,3220.5,3220.0,3.2078]
[1737599049465,0.00466273,3220.5,3220.2,0.62147]
[1737599049954,0.00466273,3220.5,3220.0,3.2078]
[1737599050353,0.6908,3221.4,3220.7,0.62137]
[1737599050354,0.6213,3221.2,3220.7,0.62137]
[1737599050559,3.2078,3221.4,3220.4,3.2078]
[1737599050854,3.2078,3221.0,3220.4,3.2078]
[1737599051074,0.62134,3220.9,3220.4,3.2078]
[1737599051657,3.2078,3221.6,3220.4,3.2078]
[1737599051868,3.82902,3221.6,3220.9,3.2078]
[1737599052059,1.348,3221.7,3221.2,0.62127]
[1737599052258,1.348,3221.7,3220.9,3.2078]
[1737599052556,1.34799,3221.7,3220.9,3.2078]
[1737599052761,0.7268,3221.7,3220.9,3.2078]
[1737599053157,3.2078,3222.7,3221.4,3.2078]
[1737599053656,3.2078,3222.7,3221.8,3.2078]
[1737599054066,3.2078,3222.7,3221.9,0.00465542]
[1737599054457,0.62104,3222.5,3221.9,0.00465542]
[1737599054662,0.62104,3222.5,3222.1,0.62111]
[1737599055263,3.2078,3222.7,3222.0,0.62112]
[1737599055566,0.62108,3222.3,3221.9,0.62578542]
[1737599056061,0.62108,3222.3,3222.0,0.62113]
[1737599056261,0.62108,3222.3,3222.1,40.8]
[1737599056460,0.62104,3222.5,3222.1,41.4211]
[1737599056766,3.2078,3222.7,3222.1,40.8]
[1737599057062,0.62107,3222.4,3222.0,0.62112]
[1737599057463,0.62102,3222.6,3222.0,0.62112]
[1737599057659,3.2078,3222.7,3222.0,0.62113]
[1737599057660,0.62104,3222.5,3222.0,0.62113]
[1737599057962,0.62104,3222.5,3221.9,0.00465542]
[1737599058165,0.62105,3222.5,3221.9,0.00465542]
[1737599058368,0.62105,3222.5,3222.2,0.62109]
[1737599058660,0.62102,3222.6,3222.3,0.62107]
[1737599058862,0.62103,3222.6,3222.2,0.62108]
[1737599059067,0.621,3222.7,3222.4,0.62105]
[1737599059258,0.621,3222.7,3221.9,0.00465542]
[1737599059259,3.2078,3223.1,3222.2,3.2078]
[1737599059668,0.62096,3223.0,3222.6,0.621]
[1737599059859,0.2524122,3223.9,3222.6,0.621]
[1737599059860,0.62074,3224.1,3223.5,0.62084]
[1737599060067,3.2078,3224.2,3223.4,3.2078]
[1737599060270,3.2078,3224.2,3223.7,0.62079]
[1737599060271,0.62073,3224.1,3223.7,0.62079]
[1737599060461,0.62073,3224.1,3223.8,0.62078]
[1737599060662,3.82852,3224.2,3223.8,0.62077]
[1737599060862,3.2078,3224.2,3223.8,0.62077]
[1737599061165,0.62073,3224.1,3223.8,0.62077]
[1737599061470,0.62073,3224.1,3223.7,0.62078]
[1737599061671,3.82852,3224.2,3223.8,0.62078]
[1737599061967,3.2078,3224.2,3223.5,0.00465542]
[1737599062161,3.2078,3224.2,3224.0,0.62074]
[1737599062359,3.82851,3224.2,3223.8,0.62078]
[1737599062962,3.2078,3224.2,3223.5,0.00465542]
[1737599063155,0.62082,3223.6,3223.5,0.00465542]
[1737599064475,8.2078,3223.6,3222.2,3.2078]
[1737599064776,1.36865,3223.5,3223.2,0.62089]
[1737599064965,1.36865,3223.5,3223.2,0.6209]
[1737599065268,0.62081,3223.7,3223.4,0.62086]
[1737599065773,0.62079,3223.8,3223.5,0.62083]
[1737599065968,0.00463107,3223.9,3223.2,0.00465542]
[1737599066169,0.62079,3223.8,3223.5,0.62083]
[1737599066374,0.6208,3223.8,3223.4,3.2078]
[1737599066577,0.00463107,3223.9,3223.4,3.2078]
[1737599066876,0.62086,3223.5,3223.2,0.62554542]
[1737599067078,0.00463107,3223.9,3223.2,0.00465542]
[1737599067276,0.00463107,3223.9,3223.4,3.2078]
[1737599067574,0.00463107,3223.9,3223.8,0.62078]
[1737599067775,0.00463107,3223.9,3223.8,0.6164206]
[1737599068873,0.00463107,3223.9,3223.4,3.2078]
[1737599069171,0.62085,3223.5,3223.2,0.62553542]
[1737599069370,0.00463107,3223.9,3223.4,0.62085]
[1737599069371,0.62081,3223.7,3223.4,0.62085]
[1737599069572,0.62081,3223.7,3223.5,0.45984203]
[1737599069876,0.62079,3223.8,3223.5,1.08068203]
[1737599070067,0.62079,3223.8,3223.6,0.62082]
[1737599070269,0.62079,3223.8,3223.5,0.45984203]
[1737599070270,0.00463107,3223.9,3223.5,0.45984203]
[1737599070467,0.00463107,3223.9,3223.8,0.62078]
[1737599071075,0.00463107,3223.9,3223.8,41.42078]
[1737599072573,0.00463107,3223.9,3223.2,0.00465542]
[1737599072779,0.62539107,3223.9,3223.8,0.46169419]
[1737599074170,0.62079,3223.8,3223.5,0.62083]
[1737599074678,0.6208,3223.8,3223.5,0.62083]
[1737599074876,0.62081,3223.7,3223.5,0.62083]
[1737599075177,0.62081,3223.7,3223.4,0.62085]
[1737599075568,0.00463107,3223.9,3223.4,0.62085]
[1737599075769,0.62082,3223.7,3223.2,40.80465542]
[1737599076069,0.62081,3223.7,3223.2,40.80465542]
[1737599076275,0.62081,3223.7,3223.4,0.62085]
[1737599076672,0.62083,3223.6,3223.4,0.62085]
[1737599076871,0.62081,3223.7,3223.5,0.62084]
[1737599077171,0.00463107,3223.9,3223.4,3.2078]
[1737599077375,0.62540107,3223.9,3223.7,0.6208]
[1737599077775,0.00463107,3223.9,3223.4,3.2078]
[1737599077977,0.00463107,3223.9,3223.8,0.62078]
[1737599078376,4.75915,3225.1,3223.8,3.66806233]
[1737599078678,4.75915,3225.1,3224.3,40.8]
[1737599078881,3.2078,3225.1,3224.3,40.8]
[1737599079270,0.62065,3224.5,3224.3,40.8]
[1737599079470,3.2078,3225.1,3224.3,40.8]
[1737599079877,0.62064,3224.6,3224.3,41.42069]
[1737599080285,0.62061,3224.7,3224.4,1.0817308]
[1737599080475,3.2078,3225.1,3224.3,40.8]
[1737599080683,3.2078,3225.1,3224.4,0.46100552]
[1737599080981,0.62058,3224.9,3224.6,0.62063]
[1737599081185,0.62057,3225.0,3224.5,0.4529348]
[1737599081483,3.82835,3225.1,3224.8,0.62058]
[1737599081880,3.82835,3225.1,3225.0,0.62055]
[1737599081881,3.2078,3225.1,3225.0,0.62055]
[1737599082380,4.54642,3225.7,3225.4,0.62047]
[1737599082577,3.2078,3225.8,3225.3,0.62049]
[1737599082785,0.62038,3225.9,3225.6,0.62043]
[1737599083082,3.2078,3226.2,3225.3,3.2078]
[1737599083083,3.2078,3226.2,3225.5,0.62044]
[1737599083282,0.62041,3225.8,3225.5,0.62044]
[1737599083475,3.2078,3226.2,3225.3,3.2078]
[1737599083777,0.62038,3225.9,3225.5,0.62045]
[1737599083985,0.62038,3225.9,3225.6,0.62043]
[1737599084376,3.82814,3226.2,3225.9,0.62037]
[1737599084678,3.2078,3226.2,3225.7,40.8]
[1737599084877,3.2078,3226.2,3225.9,0.62036]
[1737599085078,3.82813,3226.2,3225.9,0.62036]
[1737599085480,3.2078,3226.2,3225.7,40.8]
[1737599085785,0.62035,3226.1,3225.8,0.6204]
[1737599085983,0.62044,3225.7,3225.3,3.82828]
[1737599086283,3.2078,3226.2,3225.3,3.2078]
[1737599086483,3.2078,3226.2,3225.2,0.00465542]
[1737599086681,0.62047,3225.5,3225.2,0.00465542]
[1737599087085,3.2078,3226.0,3225.2,0.00465542]
[1737599087390,0.6205,3225.3,3225.2,0.00465542]
[1737599088688,0.6205,3225.3,3224.9,3.2078]
[1737599088689,0.62055,3225.0,3224.9,3.2078]
[1737599089087,0.62055,3225.0,3224.9,3.67916288]
[1737599090188,3.82835,3225.0,3224.9,0.47136288]
[1737599090392,0.62061,3224.7,3224.6,0.00465542]
[1737599090590,0.62061,3224.7,3224.6,0.47635512]
[1737599090784,0.62061,3224.7,3224.6,0.00465542]
[1737599091187,1.4189,3224.9,3224.0,3.2078]
[1737599091188,1.5515,3224.8,3224.0,3.2078]
[1737599091383,0.62062,3224.7,3224.4,0.62065]
[1737599091587,1.4189,3224.9,3224.4,0.62065]
[1737599091789,0.62061,3224.7,3224.5,0.46651023]
[1737599092096,0.62061,3224.7,3224.6,0.46651023]
[1737599092787,0.62061,3224.7,3224.6,0.46650476]
[1737599093201,3.2078,3224.8,3224.6,0.46650476]
[1737599093387,3.8284,3224.8,3224.6,0.62062]
[1737599093590,3.21245542,3225.3,3224.7,0.46655311]
[1737599093791,3.21245542,3225.3,3224.5,0.62064]
[1737599093994,0.62061,3224.7,3224.6,0.46655269]
[1737599094494,0.00465542,3225.3,3224.6,1.55968199]
[1737599094696,0.62052,3225.2,3225.0,3.2078]
[1737599094892,0.62052,3225.2,3225.1,0.46665313]
[1737599095090,0.00465542,3225.3,3225.2,0.62051]
[1737599095287,0.62052,3225.2,3225.0,3.82835]
[1737599095596,0.62051,3225.2,3225.1,0.4666333]
[1737599096308,0.00465542,3225.3,3225.1,0.4666333]
[1737599096309,0.62515542,3225.3,3225.1,0.62053]
[1737599097212,0.62051,3225.2,3225.0,3.82834]
[1737599097699,0.00465542,3225.3,3225.1,0.62053]
[1737599097700,0.62515542,3225.3,3225.1,0.62053]
[1737599098305,0.00465542,3225.3,3225.2,0.62051]
[1737599099005,0.00465542,3225.3,3225.0,3.2078]
[1737599099207,0.62516542,3225.3,3225.1,0.62053]
[1737599099405,0.00465542,3225.3,3225.2,0.62051]
[1737599100200,0.00465542,3225.3,3225.2,1.10027089]
[1737599100406,0.00465542,3225.3,3225.2,1.86791058]
[1737599100604,0.00465542,3225.3,3225.2,1.86794533]
[1737599100908,0.00465542,3225.3,3225.2,2.21445823]
[1737599101110,0.00465542,3225.3,3225.2,42.66793426]
[1737599101499,0.00465542,3225.3,3225.2,41.90028856]
[1737599102510,0.00465542,3225.3,3225.2,41.27977856]
[1737599102707,0.00465542,3225.3,3225.2,1.10028856]
[1737599103107,0.00465542,3225.3,3225.2,41.90028856]
[1737599104308,0.62515542,3225.3,3225.2,40.8]
[1737599104510,0.62053,3225.1,3225.0,3.2078]
[1737599105406,0.62053,3225.1,3224.9,0.62056]
[1737599105606,0.62053,3225.1,3225.0,0.48048397]
[1737599105811,0.00465542,3225.3,3224.6,3.2078]
[1737599105812,0.62056,3225.0,3224.6,3.2078]
[1737599106014,0.62056,3225.0,3224.8,0.62058]
[1737599106213,0.00465542,3225.3,3224.6,3.2078]
[1737599106408,0.62061,3224.7,3224.6,3.2078]
[1737599106708,0.62061,3224.7,3224.6,3.68853545]
[1737599106913,0.6206,3224.8,3224.6,4.30916545]
[1737599107218,0.6206,3224.8,3224.7,0.4807287]
[1737599107708,0.62056,3225.0,3224.8,0.62058]
[1737599108111,0.62056,3225.0,3224.9,0.48097027]
[1737599108302,0.00465542,3225.3,3224.7,0.62061]
[1737599108506,0.62058,3224.9,3224.8,0.48109059]
[1737599108712,0.62058,3224.9,3224.8,1.10168059]
[1737599109209,0.62058,3224.9,3224.8,0.48109059]
[1737599109415,3.2078,3225.2,3224.6,3.2078]
[1737599109416,0.62061,3224.7,3224.6,3.2078]
[1737599109612,0.62061,3224.7,3224.6,0.48112917]
[1737599109804,0.62065,3224.5,3224.4,40.8]
[1737599111312,0.62067,3224.4,3224.3,0.00465542]
[1737599111708,0.6759,3224.7,3224.3,0.00465542]
[1737599112215,0.62064,3224.6,3224.3,0.62533542]
[1737599112416,0.62065,3224.5,3224.3,0.62533542]
[1737599112712,0.62067,3224.4,3224.3,0.00465542]
[1737599114814,3.82847,3224.4,3224.3,0.00465542]
[1737599115015,3.2078,3224.4,3224.3,0.62534542]
[1737599115415,3.2078,3224.4,3224.3,41.42534542]
[1737599117610,3.2078,3224.4,3224.3,40.80465542]
[1737599117815,3.2078,3224.4,3224.3,41.42534542]
[1737599118409,3.2078,3224.9,3224.3,40.80465542]
[1737599118612,3.2078,3224.9,3224.8,0.62059]
[1737599118824,3.82837,3224.9,3224.7,0.62061]
[1737599119020,3.82838,3224.9,3224.7,0.6206]
[1737599119221,3.2078,3224.9,3224.3,40.80465542]
[1737599119423,3.2078,3224.9,3224.8,0.62059]
[1737599119621,3.2078,3224.9,3224.3,40.80465542]
[1737599119923,0.62065,3224.5,3224.3,41.42533542]
[1737599120316,3.2078,3224.9,3224.3,40.80465542]
[1737599120512,0.62067,3224.4,3224.3,40.80465542]
[1737599120717,0.62066,3224.5,3224.3,41.42534542]
[1737599121125,0.62064,3224.6,3224.4,0.62066]
[1737599121622,3.2078,3224.9,3224.4,0.62066]
[1737599122218,0.62065,3224.5,3224.3,41.42532542]
[1737599122728,0.62064,3224.6,3224.4,0.62066]
[1737599122920,3.82838,3224.9,3224.3,40.80465542]
[1737599123115,3.2078,3224.9,3224.8,0.62059]
[1737599124320,0.62055,3225.1,3224.9,0.62056]
[1737599125422,0.00465542,3225.3,3224.5,3.9024]
[1737599125722,3.2078,3225.2,3224.5,3.2078]
[1737599125925,0.00465542,3225.3,3224.3,40.80465542]
[1737599125926,0.62066,3224.5,3224.4,0.62066]
[1737599126222,3.2078,3224.6,3224.5,0.62065]
[1737599126421,0.6206,3224.8,3224.6,0.62062]
[1737599126622,0.62065,3224.6,3224.3,40.80465542]
[1737599126927,0.62062,3224.7,3224.5,0.62064]
[1737599127122,0.6206,3224.8,3224.4,0.62067]
[1737599127320,3.21245542,3225.3,3224.7,0.62061]
[1737599127522,3.21245542,3225.3,3224.4,3.2078]
[1737599127825,0.62051,3225.2,3225.0,0.62054]
[1737599128021,3.83295542,3225.3,3225.1,0.62051]
[1737599128323,3.83295542,3225.3,3224.7,0.62061]
[1737599128624,3.21245542,3225.3,3224.8,0.82742925]
[1737599128822,3.83295542,3225.3,3225.1,0.62053]
[1737599129023,3.21245542,3225.3,3224.6,4.7936523]
[1737599129220,3.83295542,3225.3,3225.1,0.62053]
[1737599130025,0.00465542,3225.3,3224.6,4.5416]
[1737599130219,0.00465542,3225.3,3225.2,0.62051]
[1737599130422,0.00465542,3225.3,3225.2,1.10029216]
[1737599130728,0.00465542,3225.3,3225.2,1.44787281]
[1737599131030,0.00465542,3225.3,3225.2,42.24787281]
[1737599131421,0.00465542,3225.3,3225.2,41.90029216]
[1737599132028,0.00465542,3225.3,3225.2,42.24785199]
[1737599133529,0.00465542,3225.3,3225.2,42.24779087]
[1737599134222,3.2078,3226.1,3225.9,0.62037]
[1737599134428,3.2078,3226.1,3225.8,0.62039]
[1737599134429,0.62036,3226.0,3225.8,0.62039]
[1737599135426,3.2078,3226.1,3225.7,0.62041]
[1737599135632,0.62039,3225.9,3225.7,0.62041]
[1737599136233,3.2078,3226.1,3225.6,3.2078]
[1737599136435,0.62037,3226.0,3225.8,0.6204]
[1737599136936,0.62039,3225.9,3225.7,0.62041]
[1737599137131,0.62039,3225.9,3225.8,0.6204]
[1737599137443,0.62039,3225.9,3225.7,0.6204]
[1737599137635,0.62039,3225.9,3225.8,0.6204]
[1737599137940,0.62037,3226.0,3225.8,0.6204]
[1737599138340,0.62038,3225.9,3225.7,0.62041]
[1737599138532,0.62038,3225.9,3225.8,0.6204]
[1737599138732,0.62037,3226.0,3225.8,0.6204]
[1737599139338,0.62037,3226.0,3225.9,0.62038]
[1737599139830,0.62037,3226.0,3225.6,3.2078]
[1737599140033,0.62037,3226.0,3225.8,0.62038]
[1737599140838,0.62037,3226.0,3225.9,0.62038]
[1737599141035,0.62035,3226.1,3225.9,0.62038]
[1737599141429,0.62036,3226.0,3225.8,0.62039]
[1737599141736,0.62035,3226.1,3225.9,0.62037]
[1737599142140,0.00465542,3226.2,3225.9,0.62037]
[1737599142341,0.62036,3226.0,3225.9,0.62037]
[1737599142936,0.62036,3226.0,3225.8,0.62038]
[1737599143334,0.62036,3226.0,3225.6,3.2078]